bitfinex-derivatives/quotes_ETHF0:USTF0_20250518
["timestamp","ask_amount","ask_price","bid_price","bid_amount"]
[1747536019892,2.0717,2481.2,2481.1,2.08113955]
[1747536022793,2.0717,2481.2,2481.1,1.27530955]
[1747536026301,2.0717,2481.2,2481.1,0.09218003]
[1747536035609,7.0717,2481.2,2481.1,0.09218003]
[1747536042816,10.27303749,2481.2,2481.1,0.09218003]
[1747536044421,5.27303749,2481.2,2481.1,0.09218003]
[1747536044812,12.97803749,2481.2,2481.1,0.09218003]
[1747536046320,13.98275935,2481.2,2481.1,0.09218003]
[1747536048625,6.27775935,2481.2,2481.1,0.09218003]
[1747536048822,21.69075935,2481.2,2481.1,0.09218003]
[1747536049317,6.27775935,2481.2,2481.1,0.09218003]
[1747536049522,21.69075935,2481.2,2481.1,0.09218003]
[1747536050526,20.68603749,2481.2,2481.1,0.09218003]
[1747536056226,12.98103749,2481.2,2481.1,0.09218003]
[1747536056428,20.68503749,2481.2,2481.1,0.09218003]
[1747536056725,20.68503749,2481.2,2481.1,0.77398003]
[1747536057221,5.27303749,2481.2,2481.1,0.77398003]
[1747536057724,20.68203749,2481.2,2481.1,0.77398003]
[1747536059723,20.68203749,2481.2,2481.1,2.03398003]
[1747536059924,20.68003749,2481.2,2481.1,2.03398003]
[1747536060128,12.97703749,2481.2,2481.1,2.03398003]
[1747536060424,20.68003749,2481.2,2481.1,2.03398003]
[1747536061519,20.68003749,2481.2,2481.1,3.91262039]
[1747536061715,23.88783749,2481.2,2481.1,3.91262039]
[1747536061927,8.48083749,2481.2,2481.1,3.91262039]
[1747536062130,14.91893749,2481.2,2481.1,3.91262039]
[1747536062319,14.91893749,2481.2,2481.1,4.56482039]
[1747536064227,6.40913749,2481.2,2481.1,4.56482039]
[1747536064433,6.40913749,2481.2,2481.1,5.37065039]
[1747536064628,3.20133749,2481.2,2481.1,5.37065039]
[1747536065026,4.00712749,2481.2,2481.1,4.56482039]
[1747536069038,4.00712749,2481.2,2481.1,5.37065039]
[1747536072237,7.21492749,2481.2,2481.1,3.91262039]
[1747536072434,14.91492749,2481.2,2481.1,0.09218003]
[1747536072636,19.41659,2481.2,2481.1,0.09218003]
[1747536073343,20.08099,2481.2,2481.1,0.09218003]
[1747536080545,4.67799,2481.2,2481.1,0.09218003]
[1747536080742,20.07999,2481.2,2481.1,0.09218003]
[1747536081756,4.67799,2481.2,2481.1,1.97082039]
[1747536081956,12.37699,2481.2,2481.1,3.35752039]
[1747536083353,13.67639,2481.2,2481.1,3.35752039]
[1747536084660,5.97739,2481.2,2481.1,3.35752039]
[1747536085862,5.97739,2481.2,2481.1,1.97082039]
[1747536087262,5.97739,2481.2,2481.1,0.09218003]
[1747536089760,5.97739,2481.2,2481.1,1.97082039]
[1747536092666,5.97739,2481.2,2481.1,0.09218003]
[1747536093368,13.67539,2481.2,2481.1,0.09218003]
[1747536100672,13.67539,2481.2,2481.1,1.97082039]
[1747536102376,13.67539,2481.2,2481.1,3.90482039]
[1747536111082,5.97739,2481.2,2481.1,3.90482039]
[1747536111285,4.01359,2481.2,2481.1,3.90482039]
[1747536112483,0.80579,2481.2,2481.1,3.90482039]
[1747536115883,4.01359,2481.2,2481.1,3.90482039]
[1747536122385,5.36229,2481.2,2481.1,3.90482039]
[1747536124489,4.01359,2481.2,2481.1,3.90482039]
[1747536128990,5.35849,2481.2,2481.1,3.90482039]
[1747536132486,5.35849,2481.2,2481.1,1.97082039]
[1747536134085,5.35849,2481.2,2481.1,2.62132039]
[1747536134291,5.35849,2481.2,2481.1,3.98642039]
[1747536134487,2.15069,2481.2,2481.1,3.98642039]
[1747536134888,5.35849,2481.2,2481.1,3.98642039]
[1747536135591,5.35849,2481.2,2481.1,1.97082039]
[1747536138201,10.35849,2481.2,2481.1,0.09218003]
[1747536138393,0.80583,2481.1,2481.0,3.058]
[1747536138594,3.38363,2481.1,2481.0,3.058]
[1747536138794,8.38363,2481.1,2481.0,3.058]
[1747536139198,0.80596,2480.7,2480.4,2.9561157]
[1747536139900,0.80602,2480.5,2480.4,1.357]
[1747536140299,0.80602,2480.5,2480.4,3.23564036]
[1747536140797,3.2078,2480.8,2480.6,0.80597]
[1747536140998,3.2078,2480.8,2480.7,3.15074036]
[1747536141199,3.2078,2480.8,2480.7,3.81974036]
[1747536141699,4.01372,2480.8,2480.7,3.81974036]
[1747536143700,0.80592,2480.8,2480.7,3.81974036]
[1747536144394,2.07412,2480.8,2480.7,3.81974036]
[1747536144908,0.80592,2480.9,2480.7,3.81974036]
[1747536145202,0.80589,2480.9,2480.8,3.94354036]
[1747536145707,0.80589,2480.9,2480.8,3.13764036]
[1747536146007,2.10299,2480.9,2480.8,3.13764036]
[1747536146303,2.10299,2480.9,2480.8,6.19564036]
[1747536147003,2.10299,2480.9,2480.8,7.00157036]
[1747536148003,3.2078,2481.0,2480.9,0.80589]
[1747536148193,3.2078,2481.0,2480.9,3.95643036]
[1747536148808,3.2078,2481.0,2480.9,5.14113692]
[1747536149105,3.2078,2481.0,2480.9,8.19913692]
[1747536149808,9.81585,2481.1,2481.0,0.80586]
[1747536150007,13.02365,2481.1,2481.0,2.68450036]
[1747536151206,13.02365,2481.1,2481.0,6.40180036]
[1747536151804,5.32365,2481.1,2481.0,6.40180036]
[1747536153609,2.11585,2481.1,2481.0,6.40180036]
[1747536154308,2.11585,2481.1,2481.0,6.49398039]
[1747536158015,0.80585,2481.1,2481.0,5.68812039]
[1747536159309,1.3261,2481.2,2481.0,6.49398039]
[1747536159513,2.1319,2481.2,2481.1,1.87864036]
[1747536159914,2.1319,2481.2,2481.1,2.68447036]
[1747536160124,2.1319,2481.2,2481.1,0.80583]
[1747536160627,2.1319,2481.2,2481.0,4.61532003]
[1747536160923,2.1319,2481.2,2481.1,1.87864036]
[1747536161324,2.1319,2481.2,2481.0,4.61532003]
[1747536161523,2.1319,2481.2,2481.1,1.87864036]
[1747536162325,0.80583,2481.1,2481.0,4.61532003]
[1747536162727,0.80583,2481.1,2481.0,6.49396039]
[1747536163529,2.13191,2481.2,2481.1,0.80583]
[1747536163729,2.13191,2481.2,2481.1,1.87864036]
[1747536163931,0.80583,2481.1,2481.0,4.61532003]
[1747536164428,0.80583,2481.1,2481.0,6.49396039]
[1747536172733,0.80583,2481.1,2481.0,7.67960091]
[1747536173337,1.3261,2481.2,2481.1,0.80583]
[1747536173534,1.3261,2481.2,2481.1,2.68447036]
[1747536173728,1.3261,2481.2,2481.1,2.06853]
[1747536174831,2.1319,2481.2,2481.1,2.06853]
[1747536175029,2.1319,2481.2,2481.1,1.2627]
[1747536177138,2.1319,2481.2,2481.1,2.06853]
[1747536177941,2.1319,2481.2,2481.1,1.2627]
[1747536178840,2.1319,2481.2,2481.1,2.06853]
[1747536180547,2.1319,2481.2,2481.1,3.94717036]
[1747536180735,2.8133,2481.2,2481.1,3.94717036]
[1747536181047,2.8133,2481.2,2481.1,3.14134036]
[1747536181445,0.80583,2481.1,2481.0,3.15018003]
[1747536181743,2.15193,2481.1,2481.0,3.15018003]
[1747536181943,2.15193,2481.1,2481.0,5.02882039]
[1747536182838,2.15193,2481.1,2481.0,3.15018003]
[1747536185147,13.05073,2481.1,2481.0,3.15018003]
[1747536187143,13.05073,2481.1,2481.0,0.09218003]
[1747536188449,21.25206749,2481.1,2481.0,0.09218003]
[1747536188740,0.80606,2480.4,2480.3,3.2078]
[1747536188945,0.80606,2480.4,2480.3,1.87864036]
[1747536189147,0.80606,2480.4,2480.3,4.93664036]
[1747536189337,3.37886,2480.4,2480.3,4.93664036]
[1747536190343,3.37886,2480.4,2480.3,3.058]
[1747536190642,6.58666,2480.4,2480.3,3.058]
[1747536191535,11.58666,2480.4,2480.3,3.058]
[1747536192145,11.58666,2480.4,2480.0,1.33890702]
[1747536192146,0.80615,2480.1,2480.0,1.33890702]
[1747536192348,11.70495,2480.1,2480.0,1.33890702]
[1747536192849,11.70495,2480.1,2479.6,6.09742335]
[1747536192850,12.2163,2480.1,2479.6,3.42769]
[1747536193145,3.46309,2480.0,2479.9,1.87864036]
[1747536194146,3.46309,2480.0,2479.9,4.93664036]
[1747536197838,8.46309,2480.0,2479.9,3.058]
[1747536198251,0.80633,2479.6,2479.2,1.3779]
[1747536198453,8.52133,2479.6,2479.3,0.6702]
[1747536198749,8.52133,2479.6,2479.5,1.87864036]
[1747536199254,8.52133,2479.6,2479.5,2.53344036]
[1747536199551,3.2078,2479.7,2479.5,2.53344036]
[1747536199749,19.4291,2479.7,2479.6,3.25654036]
[1747536200249,4.0141,2479.7,2479.6,3.25654036]
[1747536200449,4.0141,2479.7,2479.6,4.06286036]
[1747536200749,4.0141,2479.7,2479.6,3.25654036]
[1747536201360,0.8063,2479.7,2479.6,3.25654036]
[1747536203052,1.4731,2479.7,2479.6,3.25654036]
[1747536204155,1.4731,2479.7,2479.6,1.87864036]
[1747536204556,0.80632,2479.6,2479.5,3.7128]
[1747536204749,2.76542,2479.6,2479.5,3.7128]
[1747536204949,2.76542,2479.6,2479.5,3.058]
[1747536205555,10.49242,2479.6,2479.5,3.058]
[1747536213266,0.80645,2479.2,2479.1,1.2529]
[1747536213464,0.80648,2479.1,2479.0,0.6364]
[1747536213760,2.06488,2479.1,2479.0,0.6364]
[1747536213962,2.06488,2479.1,2479.0,2.51504036]
[1747536214165,2.74058,2479.1,2479.0,5.57304036]
[1747536216258,2.74058,2479.1,2479.0,3.058]
[1747536217459,2.74058,2479.1,2479.0,0.7653]
[1747536217665,0.80671,2478.4,2478.3,1.9513]
[1747536218063,0.80671,2478.4,2478.3,3.82994036]
[1747536218265,0.80671,2478.4,2478.3,6.88794036]
[1747536220771,8.53571,2478.4,2478.3,2.1953]
[1747536220972,8.53571,2478.4,2478.3,0.34712]
[1747536221174,0.80687,2477.9,2477.8,1.19933677]
[1747536221375,0.80687,2477.9,2477.8,2.53133677]
[1747536221675,0.80687,2477.9,2477.8,4.40997713]
[1747536221868,2.81677,2477.9,2477.8,4.40997713]
[1747536222067,2.81677,2477.9,2477.8,7.46797713]
[1747536222566,2.81677,2477.9,2477.8,6.13597713]
[1747536222973,2.81677,2477.9,2477.8,4.93664036]
[1747536223365,2.81677,2477.9,2477.8,2.09468]
[1747536223566,2.81677,2477.9,2477.8,0.01539]
[1747536223766,0.80703,2477.4,2477.3,1.9955]
[1747536224268,0.80703,2477.4,2477.3,3.87414036]
[1747536225374,0.80703,2477.4,2477.3,6.93214036]
[1747536225766,0.80703,2477.4,2477.3,4.93664036]
[1747536225969,0.80703,2477.4,2477.3,2.01126]
[1747536226171,0.80716,2477.0,2476.9,1.19933677]
[1747536226369,0.80716,2477.0,2476.8,1.3427]
[1747536226370,3.2078,2477.0,2476.8,1.3427]
[1747536226574,4.01496,2477.0,2476.9,0.85069036]
[1747536226776,5.37016,2477.0,2476.9,0.85069036]
[1747536227175,0.80716,2477.0,2476.9,3.90869036]
[1747536229379,0.80716,2477.0,2476.9,4.00087039]
[1747536230074,2.14716,2477.0,2476.9,4.00087039]
[1747536232668,0.80716,2477.0,2476.9,4.00087039]
[1747536233180,0.80716,2477.0,2476.9,9.00087039]
[1747536233681,0.80716,2477.0,2476.9,10.32117039]
[1747536237884,0.80716,2477.0,2476.9,11.12836039]
[1747536238078,18.7388,2477.6,2476.9,10.32117039]
[1747536238286,0.807,2477.5,2477.4,0.85069036]
[1747536239188,0.807,2477.5,2477.4,3.90869036]
[1747536245185,0.80692,2477.8,2477.6,0.80695]
[1747536245387,0.80692,2477.8,2477.7,0.6929]
[1747536245581,0.80692,2477.8,2477.7,2.87139036]
[1747536246486,3.2078,2478.2,2477.7,7.87139036]
[1747536246690,3.2078,2478.2,2478.1,0.85069036]
[1747536246990,4.01457,2478.2,2478.1,0.85069036]
[1747536249494,0.8068,2478.1,2478.0,4.3358]
[1747536249891,0.8068,2478.1,2478.0,5.18649036]
[1747536251994,0.8068,2478.1,2478.0,5.99333036]
[1747536252199,0.8068,2478.1,2478.0,5.99331036]
[1747536252497,0.8068,2478.1,2478.0,3.90869036]
[1747536253998,0.8068,2478.1,2478.0,5.97472036]
[1747536254199,0.8068,2478.1,2478.0,5.16789036]
[1747536254392,0.8068,2478.1,2478.0,5.97472036]
[1747536254688,4.01459,2478.2,2478.1,0.8068]
[1747536254890,4.01459,2478.2,2478.1,1.65749036]
[1747536256002,0.80679,2478.2,2478.1,1.65749036]
[1747536256501,0.80679,2478.2,2478.1,2.30529036]
[1747536256997,2.6517,2478.4,2478.1,1.49849036]
[1747536257203,3.45842,2478.4,2478.3,0.85069036]
[1747536258203,3.45842,2478.4,2478.3,3.90869036]
[1747536258401,2.82662,2478.4,2478.3,4.71543036]
[1747536258903,2.82662,2478.4,2478.3,5.97213036]
[1747536259600,0.80672,2478.4,2478.3,5.97213036]
[1747536259903,0.8067,2478.5,2478.4,0.80669]
[1747536260104,3.48226,2478.6,2478.5,1.65736036]
[1747536260302,2.84516,2478.6,2478.5,1.65736036]
[1747536260507,4.698,2478.8,2478.7,0.80661]
[1747536260699,0.80661,2478.7,2478.6,2.91401036]
[1747536261007,2.15251,2478.7,2478.6,2.10739036]
[1747536261204,2.15251,2478.7,2478.6,5.16539036]
[1747536261401,2.15251,2478.7,2478.6,5.97203036]
[1747536262311,2.15251,2478.7,2478.6,2.91403036]
[1747536262998,2.15251,2478.7,2478.6,2.10739036]
[1747536264916,2.15251,2478.7,2478.6,2.91403036]
[1747536267509,2.15251,2478.7,2478.6,2.10739036]
[1747536267714,0.80664,2478.6,2478.5,3.058]
[1747536267916,2.11314,2478.6,2478.5,3.058]
[1747536270312,7.11314,2478.6,2478.5,3.058]
[1747536270516,7.11314,2478.6,2478.5,2.0167]
[1747536270721,7.11314,2478.6,2478.5,0.9754]
[1747536273819,0.8067,2478.4,2478.3,0.09218003]
[1747536274015,11.7645,2478.4,2478.3,0.09218003]
[1747536274316,16.7645,2478.4,2478.3,3.15018003]
[1747536275118,16.7645,2478.4,2478.3,3.058]
[1747536276217,18.0307,2478.4,2478.3,3.058]
[1747536277319,18.4539,2478.4,2478.3,3.058]
[1747536278323,13.4539,2478.4,2478.3,3.058]
[1747536278721,5.7039,2478.4,2478.3,3.058]
[1747536278922,21.2299,2478.4,2478.3,3.058]
[1747536279321,21.2289,2478.4,2478.3,3.058]
[1747536280019,21.2269,2478.4,2478.3,3.058]
[1747536280622,26.2269,2478.4,2478.3,3.058]
[1747536283528,26.21907361,2478.4,2478.3,3.058]
[1747536285134,0.80677,2478.2,2478.1,3.058]
[1747536285818,2.18927,2478.2,2478.1,3.058]
[1747536286128,0.8068,2478.1,2478.0,3.058]
[1747536286326,5.3971,2478.1,2478.0,3.90869036]
[1747536288230,3.2078,2478.1,2478.0,9.71553036]
[1747536289329,2.1663,2478.1,2478.0,9.71553036]
[1747536289826,0.80675,2478.3,2478.0,11.65873036]
[1747536290023,0.80675,2478.3,2478.2,1.65746036]
[1747536290229,0.80675,2478.3,2478.2,0.85069036]
[1747536290627,0.80675,2478.3,2478.2,2.14449036]
[1747536291828,14.27145,2478.7,2478.3,0.80672]
[1747536291829,0.8067,2478.5,2478.3,0.80672]
[1747536292035,19.54041,2478.7,2478.6,0.85069036]
[1747536292930,19.54041,2478.7,2478.6,2.18729036]
[1747536299441,11.76641,2478.7,2478.6,2.18729036]
[1747536301033,0.80664,2478.6,2478.5,4.3692]
[1747536301237,2.19254,2478.6,2478.5,4.3692]
[1747536301733,2.19254,2478.6,2478.5,3.6957]
[1747536302532,0.80664,2478.6,2478.5,3.6957]
[1747536305643,2.17754,2478.6,2478.5,3.78788003]
[1747536307839,0.80664,2478.6,2478.5,4.63857039]
[1747536308239,0.80664,2478.6,2478.5,5.99707039]
[1747536312244,4.01442,2478.7,2478.5,6.80372039]
[1747536312543,0.80664,2478.6,2478.5,3.78788003]
[1747536313039,0.80664,2478.6,2478.5,4.63857039]
[1747536313846,2.11204,2478.6,2478.5,4.63857039]
[1747536314143,2.11204,2478.6,2478.5,3.15018003]
[1747536314444,3.48214,2478.6,2478.5,3.15018003]
[1747536317242,8.48214,2478.6,2478.5,3.15018003]
[1747536318145,11.68347749,2478.6,2478.5,0.09218003]
[1747536321553,8.48214,2478.6,2478.5,0.09218003]
[1747536322449,3.48214,2478.6,2478.5,0.09218003]
[1747536323553,11.25114,2478.6,2478.5,0.94287039]
[1747536323743,2.80344,2478.6,2478.5,0.94287039]
[1747536323945,16.34364,2478.6,2478.5,0.94287039]
[1747536324144,16.34364,2478.6,2478.5,4.00087039]
[1747536326359,2.07544,2478.6,2478.5,4.00087039]
[1747536326548,4.20746537,2478.8,2478.5,9.00087039]
[1747536326747,4.20746537,2478.8,2478.7,0.85069036]
[1747536326944,5.01403537,2478.8,2478.7,0.85069036]
[1747536327140,5.01403537,2478.8,2478.7,2.83629036]
[1747536327343,4.00710556,2478.8,2478.7,2.83629036]
[1747536327551,3.20053556,2478.8,2478.7,2.83629036]
[1747536328455,4.00710556,2478.8,2478.7,2.83629036]
[1747536328752,0.80657,2478.8,2478.7,2.83629036]
[1747536329751,0.80657,2478.8,2478.7,3.48439036]
[1747536334753,3.2078,2479.0,2478.9,0.80654]
[1747536335054,3.2078,2479.0,2478.9,1.65723036]
[1747536335254,3.2078,2479.0,2478.9,9.71523036]
[1747536335656,4.01431,2479.0,2478.9,9.71523036]
[1747536338262,4.01431,2479.0,2478.9,8.90869036]
[1747536338466,4.01431,2479.0,2478.9,3.90869036]
[1747536339465,4.01431,2479.0,2478.9,4.71523036]
[1747536339655,4.01431,2479.0,2478.9,6.00093036]
[1747536341560,0.80651,2479.0,2478.9,6.00093036]
[1747536341963,19.74746537,2479.8,2478.9,22.37463079]
[1747536342164,0.80637,2479.5,2479.4,0.80637]
[1747536342664,10.96753556,2479.8,2479.4,0.85069036]
[1747536342965,0.80631,2479.6,2479.5,0.80634]
[1747536343161,10.96753556,2479.8,2479.7,0.85069036]
[1747536343361,13.13648556,2479.8,2479.7,0.85069036]
[1747536343663,13.13648556,2479.8,2479.4,4.3467]
[1747536343664,0.80631,2479.6,2479.5,1.373]
[1747536344164,0.80631,2479.6,2479.5,5.28169036]
[1747536345754,1.00692981,2479.9,2479.5,5.28169036]
[1747536345959,1.00692981,2479.9,2479.8,1.65694036]
[1747536346166,1.00692981,2479.9,2479.8,17.20794036]
[1747536346467,1.00692981,2479.9,2479.8,24.78804036]
[1747536347169,1.00692981,2479.9,2479.8,27.84604036]
[1747536348666,0.80615,2480.1,2480.0,0.80618]
[1747536348870,4.4909,2480.3,2479.8,3.90869036]
[1747536349072,0.80622,2479.9,2479.8,3.058]
[1747536349271,0.80625,2479.8,2479.7,3.2078]
[1747536349467,2.11605,2479.8,2479.7,4.05849036]
[1747536352275,2.11605,2479.8,2479.7,4.86477036]
[1747536352877,1.3098,2479.8,2479.7,4.86477036]
[1747536354176,1.3098,2479.8,2479.7,1.65697036]
[1747536354573,2.11605,2479.8,2479.7,1.65697036]
[1747536359983,2.11605,2479.8,2479.7,3.00407036]
[1747536361092,2.11605,2479.8,2479.7,0.85069036]
[1747536362586,0.80628,2479.7,2479.6,3.058]
[1747536362780,5.99548,2479.7,2479.6,3.058]
[1747536362980,10.99548,2479.7,2479.6,3.058]
[1747536363282,0.80648,2479.1,2479.0,2.00584677]
[1747536363585,0.80647,2479.2,2479.1,0.85069036]
[1747536363783,1.3446,2479.4,2479.2,0.80642]
[1747536363979,1.3446,2479.4,2479.3,0.80641]
[1747536364184,1.3446,2479.4,2479.3,2.95080036]
[1747536364375,1.3446,2479.4,2479.3,4.20100036]
[1747536364988,1.48874,2479.6,2479.5,0.80635]
[1747536365188,2.76294,2479.6,2479.5,1.65704036]
[1747536366190,2.76294,2479.6,2479.5,4.71504036]
[1747536366581,2.76294,2479.6,2479.5,3.90869036]
[1747536367090,2.76294,2479.6,2479.5,4.71504036]
[1747536367283,2.08054,2479.6,2479.5,4.71504036]
[1747536367478,1.2742,2479.6,2479.5,4.71504036]
[1747536368091,0.80629,2479.7,2479.6,0.80631]
[1747536368387,1.2992,2479.9,2479.8,0.80625]
[1747536368587,3.2078,2480.3,2480.0,0.80618]
[1747536368790,0.80615,2480.1,2480.0,0.80618]
[1747536369190,0.80615,2480.1,2480.0,3.90869036]
[1747536369387,1.2992,2480.2,2480.0,3.90869036]
[1747536369588,1.2992,2480.2,2480.1,0.85069036]
[1747536369788,1.2992,2480.2,2480.1,1.52759036]
[1747536370291,2.10533,2480.2,2480.1,2.33374036]
[1747536370489,2.10533,2480.2,2480.1,1.52759036]
[1747536370691,2.10533,2480.2,2480.1,0.85069036]
[1747536372292,0.80615,2480.1,2480.0,3.058]
[1747536372493,2.05945,2480.1,2480.0,3.058]
[1747536372791,2.05945,2480.1,2480.0,3.90869036]
[1747536378493,2.05945,2480.1,2480.0,3.058]
[1747536379004,2.05945,2480.1,2480.0,3.90869036]
[1747536379200,1.2533,2480.1,2480.0,4.71487036]
[1747536379699,3.2078,2480.3,2480.1,0.80615]
[1747536379894,4.01391,2480.3,2480.2,0.85069036]
[1747536380803,5.35461,2480.3,2480.2,0.85069036]
[1747536381098,2.14681,2480.3,2480.2,0.85069036]
[1747536381605,3.2078,2480.4,2480.3,0.80609]
[1747536381796,3.2078,2480.4,2480.3,3.01928036]
[1747536381996,4.01385,2480.4,2480.3,3.01928036]
[1747536382197,4.01385,2480.4,2480.3,6.07728036]
[1747536382902,4.01385,2480.4,2480.3,5.27119036]
[1747536383501,4.01385,2480.4,2480.3,3.90869036]
[1747536383701,4.01385,2480.4,2480.3,3.058]
[1747536384399,3.2078,2480.4,2480.3,4.71478036]
[1747536386600,0.806,2480.6,2480.5,0.80602]
[1747536387209,0.806,2480.6,2480.5,4.71471036]
[1747536387406,0.806,2480.6,2480.5,6.73181036]
[1747536389510,2.1097,2480.6,2480.5,5.92579036]
[1747536389801,2.1097,2480.6,2480.5,6.73181036]
[1747536393804,3.2078,2480.7,2480.6,0.80599]
[1747536394011,9.55630613,2481.4,2480.6,0.80599]
[1747536394012,0.80588,2481.0,2480.9,0.80588]
[1747536394213,0.80588,2481.0,2480.9,1.65657036]
[1747536394406,0.80591,2480.9,2480.8,0.80591]
[1747536394914,0.80591,2480.9,2480.8,1.65660036]
[1747536395106,0.80591,2480.9,2480.8,4.71460036]
[1747536396215,0.80591,2480.9,2480.8,6.08920036]
[1747536396609,0.80591,2480.9,2480.8,5.28329036]
[1747536397514,2.08851,2480.9,2480.8,5.28329036]
[1747536399412,2.08849,2480.9,2480.8,6.08921036]
[1747536400016,0.80588,2481.0,2480.9,0.80588]
[1747536400214,0.80588,2481.0,2480.9,6.68197036]
[1747536400412,0.80588,2481.0,2480.9,5.83128]
[1747536400613,2.12698,2481.0,2480.9,5.0254]
[1747536400913,0.80581,2481.2,2481.1,0.8058]
[1747536401410,0.80581,2481.2,2481.1,1.65649036]
[1747536402022,2.09811,2481.2,2481.1,1.65649036]
[1747536403412,0.80583,2481.1,2481.0,3.058]
[1747536403619,2.75673,2481.1,2481.0,3.058]
[1747536406323,5.96453,2481.1,2481.0,3.058]
[1747536409814,5.96453,2481.1,2481.0,3.90869036]
[1747536410218,5.30593,2481.1,2481.0,4.00087039]
[1747536413616,2.09813,2481.1,2481.0,4.00087039]
[1747536415126,2.09813,2481.1,2481.0,4.80673039]
[1747536415322,2.09813,2481.1,2481.0,4.00087039]
[1747536415519,2.09813,2481.1,2481.0,5.33367039]
[1747536416825,2.09813,2481.1,2481.0,6.00337039]
[1747536418025,2.09813,2481.1,2481.0,4.67057039]
[1747536420825,2.09813,2481.1,2481.0,4.00087039]
[1747536422432,2.09813,2481.1,2481.0,4.64597039]
[1747536423933,2.09813,2481.1,2481.0,6.79733039]
[1747536424134,2.09813,2481.1,2481.0,5.99147039]
[1747536426237,0.80581,2481.2,2481.0,5.99147039]
[1747536426533,5.38148,2481.3,2481.1,3.55849036]
[1747536426834,3.20767399,2481.5,2481.3,0.80574]
[1747536427029,5.38129399,2481.5,2481.4,1.9162]
[1747536427936,3.20767399,2481.5,2481.4,3.57262036]
[1747536428234,3.20767399,2481.5,2481.4,14.39562036]
[1747536428432,0.80567,2481.6,2481.5,0.8057]
[1747536428636,0.80567,2481.6,2481.5,11.43839036]
[1747536429136,0.80567,2481.6,2481.5,14.49639036]
[1747536429631,0.80567,2481.6,2481.5,15.67860133]
[1747536429828,0.80567,2481.6,2481.5,7.10290133]
[1747536430033,0.80567,2481.6,2481.5,5.09090133]
[1747536430237,1.49627,2481.6,2481.5,5.09090133]
[1747536430429,0.80567,2481.6,2481.5,5.09090133]
[1747536431134,0.80567,2481.6,2481.5,3.90869036]
[1747536432031,0.80567,2481.6,2481.5,5.87449036]
[1747536432233,2.18286,2481.7,2481.5,5.87449036]
[1747536432537,2.18286,2481.7,2481.6,2.15359036]
[1747536437141,2.18286,2481.7,2481.6,0.85069036]
[1747536437939,2.18286,2481.7,2481.6,0.84254574]
[1747536439642,0.80566,2481.6,2481.5,3.058]
[1747536439843,2.14476,2481.6,2481.5,3.058]
[1747536440042,2.14476,2481.6,2481.5,3.90054574]
[1747536441647,2.14476,2481.6,2481.5,3.058]
[1747536442842,10.35256,2481.6,2481.5,3.058]
[1747536443439,5.35256,2481.6,2481.5,3.058]
[1747536444243,10.35256,2481.6,2481.5,3.058]
[1747536448152,7.14476,2481.6,2481.5,3.058]
[1747536448451,10.35256,2481.6,2481.5,3.058]
[1747536449651,7.14476,2481.6,2481.5,3.058]
[1747536449952,10.35256,2481.6,2481.5,3.058]
[1747536450353,5.35256,2481.6,2481.5,3.058]
[1747536452057,10.35256,2481.6,2481.5,3.058]
[1747536453655,13.56023399,2481.6,2481.5,3.058]
[1747536454854,13.56023399,2481.6,2481.5,3.15018003]
[1747536457954,29.03123399,2481.6,2481.5,3.15018003]
[1747536459663,21.29823399,2481.6,2481.5,3.15018003]
[1747536459856,29.02723399,2481.6,2481.5,3.15018003]
[1747536460057,25.81956,2481.6,2481.5,3.15018003]
[1747536460458,20.81956,2481.6,2481.5,3.15018003]
[1747536463566,24.02723399,2481.6,2481.5,3.15018003]
[1747536463963,16.29823399,2481.6,2481.5,3.15018003]
[1747536464169,24.02023399,2481.6,2481.5,3.15018003]
[1747536466268,24.02023399,2481.6,2481.5,0.09218003]
[1747536466469,20.81256,2481.6,2481.5,0.09218003]
[1747536468271,20.81256,2481.6,2481.5,3.15018003]
[1747536471269,13.09056,2481.6,2481.5,3.15018003]
[1747536471569,20.80556,2481.6,2481.5,3.15018003]
[1747536471774,20.80656,2481.6,2481.5,3.99272577]
[1747536471965,4.01346,2481.6,2481.5,3.99272577]
[1747536472270,11.72846,2481.6,2481.5,3.99272577]
[1747536473375,7.22017423,2481.6,2481.5,3.99272577]
[1747536473561,7.22017423,2481.6,2481.5,4.64122577]
[1747536474471,4.01237423,2481.6,2481.5,4.64122577]
[1747536474772,7.22017423,2481.6,2481.5,4.64122577]
[1747536478372,10.42494047,2482.9,2481.8,3.2078]
[1747536478571,15.17173418,2483.3,2482.8,3.2078]
[1747536478764,15.17173418,2483.3,2483.2,4.01295]
[1747536478765,2.54237202,2483.3,2483.2,4.01295]
[1747536478961,3.00990627,2483.8,2483.2,3.2078]
[1747536479274,0.80502,2483.6,2483.5,3.2078]
[1747536479473,3.00990627,2483.8,2483.3,16.418]
[1747536479776,3.00990627,2483.8,2483.4,0.32035594]
[1747536480071,1.3651,2483.7,2483.4,0.80508]
[1747536480275,1.3651,2483.7,2483.3,19.476]
[1747536480476,1.3651,2483.7,2483.4,0.32035319]
[1747536480775,1.3651,2483.7,2483.5,1.1791173]
[1747536481166,1.3651,2483.7,2483.5,4.2371173]
[1747536481673,2.17009,2483.7,2483.5,4.2371173]
[1747536481879,0.80502,2483.6,2483.5,4.2371173]
[1747536482170,2.13632,2483.6,2483.5,4.2371173]
[1747536482568,2.13632,2483.6,2483.5,3.058]
[1747536483778,13.59167212,2483.6,2483.5,3.058]
[1747536484277,0.80515,2483.2,2483.1,1.19989227]
[1747536484477,8.25090963,2483.2,2483.1,1.19989227]
[1747536484678,12.26050212,2483.2,2483.1,1.19989227]
[1747536485567,13.58840212,2483.2,2483.1,1.19989227]
[1747536486280,13.58840212,2483.2,2483.0,3.058]
[1747536486281,0.80518,2483.1,2483.0,3.058]
[1747536486577,9.51763963,2483.1,2483.0,3.058]
[1747536486876,2.07188,2483.1,2483.0,3.058]
[1747536488177,13.52723212,2483.1,2483.0,3.058]
[1747536493182,0.80534,2482.6,2482.5,3.2078]
[1747536493982,2.07914,2482.6,2482.5,3.2078]
[1747536494179,2.07914,2482.6,2482.5,6.2658]
[1747536496873,1.2738,2482.6,2482.5,6.2658]